bitfinex-derivatives/quotes_BTCF0:USTF0_20250218
["timestamp","ask_amount","ask_price","bid_price","bid_amount"]
[1739892189888,0.07743468,95559.0,95557.0,0.2093363]
[1739892190086,0.05601422,95559.0,95557.0,0.2093363]
[1739892190282,0.26534752,95559.0,95557.0,0.001]
[1739892190485,0.3608,95558.0,95557.0,0.001]
[1739892192101,0.000157,95562.0,95557.0,0.3618]
[1739892192391,0.30733103,95578.0,95577.0,0.209293]
[1739892192590,0.30473321,95578.0,95577.0,0.930893]
[1739892192792,0.1,95600.0,95585.0,0.2092755]
[1739892192994,0.1,95600.0,95585.0,0.5700755]
[1739892193694,0.000157,95595.0,95585.0,0.5700755]
[1739892193898,0.000157,95595.0,95585.0,0.591966]
[1739892194490,0.23746329,95586.0,95585.0,0.591966]
[1739892194896,0.000157,95595.0,95585.0,0.6826905]
[1739892195097,0.000157,95595.0,95594.0,0.5700558]
[1739892195282,0.1,95600.0,95599.0,0.2092448]
[1739892195487,0.0797,95600.0,95599.0,0.5700448]
[1739892195883,1e-07,95600.0,95599.0,0.8700448]
[1739892197093,1e-07,95600.0,95599.0,0.8710448]
[1739892197293,1e-08,95609.0,95608.0,0.2092251]
[1739892197501,1e-08,95609.0,95608.0,0.5700251]
[1739892197889,1e-08,95609.0,95608.0,0.8700251]
[1739892198993,1e-08,95609.0,95608.0,0.5700251]
[1739892199197,1e-08,95609.0,95608.0,0.8700251]
[1739892199694,0.00555354,95642.0,95634.0,0.2091681]
[1739892199890,0.00555354,95642.0,95635.0,0.2091642]
[1739892200099,0.00555354,95642.0,95641.0,0.3608]
[1739892200606,0.00555354,95642.0,95641.0,0.3819883]
[1739892201300,0.00555354,95642.0,95641.0,0.3608]
[1739892202606,0.00555354,95642.0,95634.0,0.001]
[1739892202803,0.1257,95641.0,95634.0,0.001]
[1739892203103,0.2091679,95635.0,95632.0,0.36095691]
[1739892203304,0.3348542,95641.0,95632.0,0.36095691]
[1739892203694,0.1257,95641.0,95632.0,0.36095691]
[1739892203895,0.2091666,95635.0,95632.0,0.00015691]
[1739892204205,0.2091666,95635.0,95634.0,0.001]
[1739892204600,0.2091589,95639.0,95634.0,0.001]
[1739892205104,0.3348538,95641.0,95634.0,0.001]
[1739892205407,0.209166,95636.0,95634.0,0.001]
[1739892206307,0.2091704,95633.0,95632.0,0.00115691]
[1739892206500,0.02143978,95633.0,95618.0,0.9122]
[1739892206698,0.4130899,95638.0,95619.0,0.1202]
[1739892206699,0.41364991,95638.0,95619.0,0.1202]
[1739892206898,0.4130899,95638.0,95634.0,0.001]
[1739892207201,0.4130899,95638.0,95613.0,0.2092134]
[1739892207405,0.2092019,95619.0,95611.0,0.3608]
[1739892207709,0.2092019,95619.0,95616.0,0.00015691]
[1739892208213,0.0663,95618.0,95616.0,0.00015691]
[1739892208510,0.2755047,95618.0,95616.0,0.00015691]
[1739892209404,0.0663,95618.0,95616.0,0.20936401]
[1739892209604,0.00015691,95627.0,95626.0,0.2091857]
[1739892209806,0.00015691,95627.0,95626.0,0.5699857]
[1739892210201,0.00015691,95627.0,95626.0,0.38229403]
[1739892210693,0.00015691,95627.0,95626.0,0.59147973]
[1739892210894,0.00315691,95627.0,95626.0,0.59147973]
[1739892211106,0.00315691,95627.0,95626.0,0.23067973]
[1739892211310,0.00315691,95627.0,95626.0,0.2091857]
[1739892211894,0.00315691,95627.0,95619.0,0.3608]
[1739892212903,0.00315691,95627.0,95616.0,0.00015691]
[1739892212904,0.2092021,95619.0,95616.0,0.00015691]
[1739892213308,0.2092021,95619.0,95616.0,0.20936271]
[1739892213613,0.2092054,95617.0,95616.0,0.00015691]
[1739892215009,0.00015691,95627.0,95616.0,0.00015691]
[1739892215208,0.2091977,95621.0,95618.0,0.209203]
[1739892215508,0.2092054,95617.0,95616.0,0.00015691]
[1739892215815,0.2102054,95617.0,95616.0,0.00015691]
[1739892216297,0.2092054,95617.0,95616.0,0.00015691]
[1739892216808,0.02131119,95619.0,95612.0,0.00156875]
[1739892217013,0.3608,95620.0,95606.0,0.91276]
[1739892217311,0.2092273,95607.0,95606.0,0.91196]
[1739892217511,0.2092319,95605.0,95602.0,0.2092381]
[1739892217709,0.3608,95612.0,95602.0,0.2092381]
[1739892217710,0.2092361,95603.0,95602.0,0.2092381]
[1739892218210,0.2092361,95603.0,95602.0,0.5700381]
[1739892218403,0.2092361,95603.0,95602.0,0.2092381]
[1739892219614,0.2735295,95606.0,95605.0,0.2092317]
[1739892220607,0.2735295,95606.0,95602.0,0.3608]
[1739892221118,0.2755295,95606.0,95602.0,0.3608]
[1739892221505,0.0663,95606.0,95602.0,0.3608]
[1739892221711,0.0663,95606.0,95605.0,0.2092317]
[1739892222406,0.0675,95610.0,95605.0,0.3608]
[1739892222610,0.0675,95610.0,95609.0,0.2092229]
[1739892222816,0.1346,95625.0,95621.0,0.2091952]
[1739892223014,0.0646,95624.0,95621.0,0.3608]
[1739892223213,0.0646,95624.0,95610.0,0.12618277]
[1739892223214,0.0646,95624.0,95619.0,0.12028]
[1739892223418,0.2091936,95623.0,95616.0,0.2092063]
[1739892223809,0.2091936,95623.0,95617.0,0.2092044]
[1739892224214,0.0646,95624.0,95617.0,0.2092044]
[1739892224406,0.2091973,95621.0,95615.0,0.02126412]
[1739892224613,0.2091973,95621.0,95613.0,0.00015691]
[1739892225011,0.2091973,95621.0,95613.0,0.02187471]
[1739892225518,0.2091973,95621.0,95617.0,0.2092047]
[1739892226115,0.0646,95624.0,95614.0,0.3608]
[1739892226322,0.0646,95624.0,95621.0,0.2091964]
[1739892226522,0.2091949,95622.0,95616.0,0.2092067]
[1739892226718,0.0646,95624.0,95614.0,0.3608]
[1739892226919,0.2091923,95623.0,95615.0,0.1202]
[1739892227125,0.209212,95614.0,95613.0,0.00015691]
[1739892229212,0.00056001,95623.0,95622.0,0.2091945]
[1739892229424,0.0646,95624.0,95613.0,0.36095691]
[1739892229615,0.2091928,95623.0,95613.0,0.36095691]
[1739892229923,0.2091928,95623.0,95621.0,0.2091964]
[1739892230417,0.2091945,95622.0,95621.0,0.2091964]
[1739892231118,0.0646,95624.0,95615.0,0.2092077]
[1739892231318,0.209212,95614.0,95613.0,0.36295691]
[1739892231517,0.209212,95614.0,95613.0,0.00215691]
[1739892231718,0.2092295,95606.0,95605.0,0.3608]
[1739892232116,0.3608,95620.0,95608.0,0.2092247]
[1739892232117,0.02210434,95610.0,95608.0,0.2092247]
[1739892232323,0.02210434,95610.0,95605.0,0.3608]
[1739892232624,0.48698277,95620.0,95605.0,0.3608]
[1739892232920,0.05301422,95619.0,95605.0,0.3608]
[1739892233118,0.2092295,95606.0,95605.0,0.3608]
[1739892233422,0.0523008,95618.0,95603.0,0.00015691]
[1739892233423,0.002,95610.0,95603.0,0.00015691]
[1739892233623,0.2092339,95604.0,95603.0,0.00015691]
[1739892233925,0.2778317,95605.0,95604.0,0.2092339]
[1739892234424,0.0686,95605.0,95603.0,0.00015691]
[1739892234619,0.2749339,95604.0,95603.0,0.00015691]
[1739892234815,0.29426713,95604.0,95603.0,0.00015691]
[1739892235015,0.0657,95604.0,95603.0,0.00015691]
[1739892235215,0.001,95610.0,95609.0,0.2092229]
[1739892235412,0.2092055,95617.0,95609.0,0.3608]
[1739892235717,0.001,95610.0,95609.0,0.5700229]
[1739892236128,0.0194519,95621.0,95609.0,0.3608]
[1739892236426,0.1291,95626.0,95611.0,0.3608]
[1739892236427,0.2092164,95612.0,95611.0,0.3608]
[1739892237325,0.209206,95617.0,95616.0,0.2092076]
[1739892237716,0.2092129,95614.0,95611.0,0.3608]
[1739892237913,0.0646,95618.0,95611.0,0.3608]
[1739892238124,0.0646,95618.0,95612.0,0.1202]
[1739892238322,0.2092142,95613.0,95612.0,0.1202]
[1739892238627,0.2092339,95604.0,95603.0,0.00015691]
[1739892238927,0.2092226,95610.0,95603.0,0.00015691]
[1739892239126,0.0625,95609.0,95603.0,0.00015691]
[1739892239331,0.0625,95609.0,95608.0,0.2092251]
[1739892241030,0.001,95610.0,95609.0,0.2092229]
[1739892241232,0.00015691,95627.0,95608.0,0.3608]
[1739892241524,0.00015691,95627.0,95626.0,0.2091857]
[1739892241724,0.01985832,95627.0,95616.0,0.3608]
[1739892241922,0.00015691,95627.0,95616.0,0.3608]
[1739892242124,0.2091962,95622.0,95618.0,0.2092032]
[1739892242430,0.2091962,95622.0,95616.0,0.3608]
[1739892242431,0.2092054,95617.0,95616.0,0.3608]
[1739892242631,0.2092054,95617.0,95608.0,0.3658]
[1739892243025,0.2092054,95617.0,95614.0,0.2092118]
[1739892243222,0.0675,95621.0,95618.0,0.2092027]
[1739892243528,0.00015691,95627.0,95626.0,0.2091857]
[1739892243920,0.01975326,95627.0,95626.0,0.2091857]
[1739892244121,0.00015691,95627.0,95626.0,0.2091857]
[1739892245729,0.20934041,95627.0,95626.0,0.2091857]
[1739892246033,0.2091879,95625.0,95624.0,0.3608]
[1739892246219,0.2091879,95625.0,95621.0,0.2091955]
[1739892246532,0.3608,95622.0,95593.0,0.3608]
[1739892246734,0.12618277,95620.0,95606.0,0.12016]
[1739892247032,0.2092018,95619.0,95606.0,0.01964684]
[1739892247225,0.0644,95624.0,95609.0,0.12618277]
[1739892247426,0.3608,95621.0,95600.0,0.12618277]
[1739892247625,0.3608,95621.0,95606.0,0.12016]
[1739892247626,0.12618277,95620.0,95606.0,0.12016]
[1739892247825,0.12618277,95620.0,95607.0,0.2092262]
[1739892248133,0.2092254,95608.0,95604.0,0.2092332]
[1739892248432,0.2092339,95604.0,95593.0,0.3608]
[1739892248934,0.4050281,95607.0,95605.0,0.2092314]
[1739892249135,0.4050281,95607.0,95593.0,0.38050909]
[1739892249330,0.1314,95607.0,95606.0,0.2092295]
[1739892249631,0.001,95608.0,95607.0,0.2092273]
[1739892250031,0.0626,95618.0,95617.0,0.2092054]
[1739892251524,0.0603,95626.0,95614.0,0.01940174]
[1739892251725,0.0603,95626.0,95625.0,0.2091879]
[1739892251924,0.00015691,95627.0,95625.0,0.5699879]
[1739892252337,0.00015691,95627.0,95626.0,0.0604]
[1739892253624,0.11256539,95637.0,95626.0,0.0604]
[1739892253835,0.11256539,95637.0,95636.0,0.5699639]
[1739892254839,0.00015691,95646.0,95639.0,0.2091564]
[1739892255231,0.00015691,95646.0,95636.0,0.3608]
[1739892255540,0.00015691,95646.0,95644.0,0.3608]
[1739892256041,0.00315691,95646.0,95644.0,0.5699453]
[1739892257336,0.21230031,95646.0,95644.0,0.3608]
[1739892258441,0.00315691,95646.0,95644.0,0.3608]
[1739892258843,0.00015691,95646.0,95644.0,0.3608]
[1739892259152,0.21229991,95646.0,95644.0,0.3608]
[1739892259553,0.00315691,95646.0,95644.0,0.5699442]
[1739892262240,0.00315691,95646.0,95644.0,0.2091442]
[1739892262435,0.00315691,95646.0,95625.0,0.91288]
[1739892262746,0.20916,95638.0,95632.0,0.2091712]
[1739892263042,0.0604,95637.0,95632.0,0.01924639]
[1739892263245,0.0604,95637.0,95633.0,0.2091695]
[1739892265045,0.0604,95637.0,95626.0,0.3608]
[1739892265235,0.002,95637.0,95626.0,0.3608]
[1739892265435,0.002,95637.0,95635.0,0.2091661]
[1739892265942,0.00015691,95646.0,95645.0,0.2091442]
[1739892266443,0.00015691,95646.0,95638.0,0.2091578]
[1739892266652,0.00015691,95646.0,95635.0,0.0583]
[1739892266837,0.00015691,95646.0,95644.0,0.2091463]
[1739892268438,0.00015691,95646.0,95635.0,0.0583]
[1739892268640,0.20929921,95646.0,95645.0,0.001]
[1739892268843,0.21229921,95646.0,95645.0,0.001]
[1739892269243,0.20929921,95646.0,95635.0,0.0583]
[1739892269548,0.2091643,95636.0,95629.0,0.2091791]
[1739892269750,0.1215,95635.0,95629.0,0.2091791]
[1739892270043,0.1215,95635.0,95633.0,0.2091701]
[1739892270545,0.1215,95635.0,95627.0,0.00015691]
[1739892270739,0.2091706,95633.0,95627.0,0.00015691]
[1739892270943,0.209173,95632.0,95630.0,0.2091758]
[1739892271241,0.22833044,95632.0,95630.0,0.2091758]
[1739892271446,0.1215,95635.0,95633.0,0.2091691]
[1739892271938,0.1235,95635.0,95633.0,0.2091691]
[1739892272345,0.0613,95635.0,95634.0,0.3608]
[1739892272548,0.00015691,95646.0,95634.0,0.3608]
[1739892272549,0.00015691,95646.0,95644.0,0.2091464]
[1739892272751,0.00015691,95646.0,95645.0,0.3608]
[1739892274949,0.00315691,95646.0,95645.0,0.3618]
[1739892275451,0.00315691,95646.0,95645.0,0.4245]
[1739892275643,0.00315691,95646.0,95645.0,0.44425688]
[1739892276939,0.00521413,95675.0,95674.0,0.2090808]
[1739892277140,0.06571413,95675.0,95674.0,0.2090808]
[1739892278452,0.0605,95675.0,95674.0,0.2090808]
[1739892278653,0.0605,95675.0,95674.0,0.2100808]
[1739892280253,0.0605,95675.0,95674.0,0.001]
[1739892282860,0.07995811,95675.0,95674.0,0.001]
[1739892284159,0.0605,95675.0,95674.0,0.001]
[1739892284463,0.0796665,95675.0,95674.0,0.001]
[1739892284962,0.0605,95675.0,95674.0,0.001]
[1739892286461,0.2695786,95675.0,95674.0,0.001]
[1739892288067,0.0605,95675.0,95674.0,0.2100808]
[1739892288263,0.2695786,95675.0,95674.0,0.001]
[1739892288566,0.0605,95675.0,95665.0,0.00015683]
[1739892288753,0.2090983,95666.0,95665.0,0.00015683]
[1739892290572,0.2091288,95653.0,95639.0,0.3608]
[1739892290769,0.2091288,95653.0,95652.0,0.2091289]
[1739892291468,0.12618277,95662.0,95648.0,0.91232]
[1739892291668,0.2091354,95649.0,95648.0,0.91152]
[1739892291973,0.2091354,95649.0,95648.0,1.1216576]
[1739892292564,0.2091354,95649.0,95648.0,1.1206576]
[1739892292773,0.2091354,95649.0,95648.0,0.91152]
[1739892293071,0.2091354,95649.0,95643.0,0.00015683]
[1739892293072,0.2091464,95644.0,95643.0,0.00015683]
[1739892293265,0.5699464,95644.0,95643.0,0.00015683]
[1739892294174,0.3608,95644.0,95623.0,0.3608]
[1739892294377,0.2091765,95631.0,95623.0,0.5699917]
[1739892294568,0.0589,95630.0,95622.0,0.91244]
[1739892295074,0.0589,95630.0,95622.0,0.93185721]
[1739892295663,0.0589,95630.0,95628.0,0.2091809]
[1739892297372,0.00015683,95637.0,95636.0,0.2091639]
[1739892298577,0.00115683,95637.0,95636.0,0.2091639]
[1739892299672,0.06,95659.0,95658.0,0.2091158]
[1739892300476,0.4208,95659.0,95635.0,0.3608]
[1739892300776,0.06,95659.0,95657.0,0.2091175]
[1739892301077,0.2090757,95677.0,95658.0,0.3608]
[1739892301269,0.00015683,95668.0,95660.0,0.12618277]
[1739892301471,0.00015683,95668.0,95667.0,0.2090961]
[1739892302577,0.00015683,95668.0,95658.0,0.3608]
[1739892302578,0.20925163,95668.0,95658.0,0.3608]
[1739892303175,0.20925163,95668.0,95658.0,0.01795597]
[1739892303383,0.2091034,95664.0,95657.0,0.001]
[1739892303583,0.00015683,95668.0,95661.0,0.2091083]
[1739892304078,0.2091012,95665.0,95655.0,0.2091217]
[1739892304378,0.0621,95664.0,95659.0,0.2091127]
[1739892304575,0.0621,95664.0,95660.0,0.2091103]
[1739892304771,0.0621,95664.0,95661.0,0.2091086]
[1739892305172,0.0621,95664.0,95662.0,0.2091066]
[1739892305773,0.3608,95663.0,95654.0,0.00015683]
[1739892306177,0.2091191,95657.0,95654.0,0.00015683]
[1739892306375,0.0563,95656.0,95655.0,0.2091219]
[1739892306579,0.2654207,95656.0,95654.0,0.00015683]
[1739892307085,0.3608,95655.0,95654.0,0.00015683]
[1739892307477,0.209152,95642.0,95640.0,0.00156826]
[1739892307679,0.4229,95641.0,95640.0,0.00156826]
[1739892308585,0.3608,95641.0,95640.0,0.21072336]
[1739892308784,0.3608,95641.0,95640.0,0.00156826]
[1739892310180,0.3608,95647.0,95640.0,0.00156826]
[1739892310382,0.2091529,95641.0,95640.0,0.00156826]
[1739892311177,0.0593,95649.0,95642.0,0.2091493]
[1739892311485,0.0593,95649.0,95640.0,0.00156826]
[1739892311671,0.2091455,95645.0,95640.0,0.00156826]
[1739892312076,0.2091474,95644.0,95640.0,0.00156826]
[1739892312479,0.3608,95646.0,95641.0,0.2091523]
[1739892313071,0.3608,95646.0,95640.0,0.00156826]
[1739892313072,0.3608,95646.0,95644.0,0.2091459]
[1739892313281,0.0621,95654.0,95653.0,0.2091267]
[1739892313884,0.0621,95654.0,95647.0,0.2091388]
[1739892314083,0.09632087,95649.0,95648.0,0.2091361]
[1739892316285,0.2091403,95647.0,95641.0,0.057]
[1739892316478,0.09632087,95649.0,95647.0,0.2091391]
[1739892316881,0.2091359,95649.0,95647.0,0.2091391]
[1739892317283,0.0621,95654.0,95649.0,0.2091349]
[1739892317777,0.2091328,95651.0,95649.0,0.2091349]
[1739892318179,0.0621,95654.0,95641.0,0.057]
[1739892318378,0.00056001,95656.0,95655.0,0.2091223]
[1739892318583,0.05886859,95671.0,95667.0,0.2090961]
[1739892318994,0.2090931,95669.0,95667.0,0.2090961]
[1739892319183,0.2090931,95669.0,95658.0,0.00015683]
[1739892319184,0.2091006,95665.0,95663.0,0.2091044]
[1739892319791,0.05886859,95671.0,95658.0,0.00015683]
[1739892320091,0.2091071,95662.0,95660.0,0.2091113]
[1739892320290,0.05886859,95671.0,95658.0,0.00015683]
[1739892320489,0.209097,95667.0,95658.0,0.00015683]
[1739892320685,0.209097,95667.0,95665.0,0.2090999]
[1739892320880,0.05886859,95671.0,95658.0,0.00015683]
[1739892321086,0.2091118,95660.0,95658.0,0.20927253]
[1739892321388,0.0568,95659.0,95658.0,0.20927253]
[1739892322592,0.209092,95669.0,95667.0,0.2090961]
[1739892322791,0.20925073,95668.0,95667.0,0.2090961]
[1739892323680,0.2091037,95664.0,95662.0,0.2091069]
[1739892323886,0.2091037,95664.0,95659.0,0.0594]
[1739892324395,0.2091037,95664.0,95663.0,0.2091048]
[1739892324584,0.00015683,95668.0,95659.0,0.0594]
[1739892324781,0.00015683,95668.0,95667.0,0.2090961]
[1739892325588,0.20925073,95668.0,95667.0,0.2090961]
[1739892327290,0.00015683,95668.0,95667.0,0.2090961]
[1739892327999,0.00015683,95668.0,95659.0,0.0594]
[1739892328295,0.2091032,95664.0,95663.0,0.2090997]
[1739892328694,0.00015683,95668.0,95667.0,0.2090961]
[1739892329091,0.36136001,95672.0,95660.0,0.0589]
[1739892329291,1.6643,95981.0,95660.0,0.0589]
[1739892329292,0.00524913,95686.0,95685.0,0.2090568]
[1739892329590,0.1176,95699.0,95690.0,0.2090458]
[1739892329996,0.2090285,95698.0,95690.0,0.2090458]
[1739892330194,0.1176,95699.0,95690.0,0.2090458]
[1739892330412,0.3266268,95699.0,95690.0,0.2090458]
[1739892330590,0.2090285,95698.0,95690.0,0.2090458]
[1739892330790,0.2090494,95689.0,95684.0,0.2090576]
[1739892330990,0.2090494,95689.0,95685.0,0.2090565]
[1739892331192,0.1176,95699.0,95681.0,0.00015683]
[1739892331394,0.1176,95699.0,95689.0,0.2090462]
[1739892331802,0.0051403,95698.0,95690.0,0.001]
[1739892332102,0.2090329,95696.0,95690.0,0.001]
[1739892332296,0.1176,95699.0,95689.0,0.2090462]
[1739892332496,0.0601,95699.0,95689.0,0.2090462]
[1739892333798,0.2691264,95699.0,95689.0,0.2090462]
[1739892333999,0.0601,95699.0,95689.0,0.2090462]
[1739892334703,0.0601,95699.0,95690.0,0.001]
[1739892335095,0.0601,95699.0,95689.0,0.2090462]
[1739892335297,0.0601,95699.0,95689.0,0.2100462]
[1739892335697,0.0601,95699.0,95689.0,0.2090462]
[1739892335897,0.0601,95699.0,95690.0,0.001]
[1739892336900,0.0601,95699.0,95690.0,0.2100458]
[1739892337601,0.10015683,95700.0,95690.0,0.2090458]
[1739892337801,3e-08,95700.0,95699.0,0.5698262]
[1739892338007,0.0628,95719.0,95718.0,0.2089847]
[1739892338209,0.0628,95719.0,95718.0,0.5697847]
[1739892339197,0.0628,95719.0,95718.0,0.58839259]
[1739892340411,0.00015674,95728.0,95727.0,0.208965]
[1739892340599,0.00015674,95728.0,95727.0,0.569765]
[1739892341213,0.00015674,95728.0,95727.0,0.208965]
[1739892341616,0.00015674,95728.0,95719.0,0.0608]
[1739892341808,0.00015674,95728.0,95726.0,0.2089654]
[1739892342107,0.2089769,95722.0,95710.0,0.2090011]
[1739892342303,0.12618277,95720.0,95709.0,0.00015674]
[1739892342506,0.3608,95718.0,95709.0,0.00015674]
[1739892342700,0.3608,95710.0,95709.0,0.00015674]
[1739892343806,0.2090155,95704.0,95691.0,0.0608]
[1739892344102,0.1264,95703.0,95691.0,0.0608]
[1739892344913,0.1264,95703.0,95691.0,0.06095674]
[1739892345612,0.00056001,95710.0,95709.0,0.2090043]
[1739892345803,0.14381323,95727.0,95708.0,0.3608]
[1739892346107,0.14381323,95727.0,95717.0,0.12618277]
[1739892346108,0.08101323,95727.0,95717.0,0.12618277]
[1739892346502,0.3608,95731.0,95717.0,0.19108277]
[1739892346703,0.3608,95731.0,95725.0,0.2089677]
[1739892347298,0.3608,95731.0,95725.0,0.22676538]
[1739892348015,0.2089458,95736.0,95725.0,0.22676538]
[1739892349011,0.2089458,95736.0,95725.0,0.01779768]
[1739892349213,0.1242,95738.0,95717.0,0.0649]
[1739892349414,0.12618277,95730.0,95721.0,0.208976]
[1739892350315,0.12618277,95730.0,95717.0,0.01743615]
[1739892350615,0.3608,95724.0,95717.0,0.2089857]
[1739892350809,0.3608,95724.0,95713.0,0.01783119]
[1739892350810,0.208981,95720.0,95713.0,0.01783119]
[1739892351113,0.1186,95719.0,95712.0,0.00015674]
[1739892351815,0.2089858,95718.0,95712.0,0.00015674]
[1739892352015,0.3608,95715.0,95712.0,0.00015674]
[1739892352315,0.2089912,95715.0,95712.0,0.00015674]
[1739892352514,0.3608,95716.0,95712.0,0.00015674]
[1739892352815,0.1186,95719.0,95712.0,0.00015674]
[1739892353502,0.1186,95719.0,95713.0,0.2089937]
[1739892354411,0.1186,95719.0,95714.0,0.2089922]
[1739892354614,0.1186,95719.0,95712.0,0.00015674]
[1739892354818,0.1186,95719.0,95717.0,0.2089862]
[1739892355909,0.1186,95719.0,95712.0,0.00015674]
[1739892356118,0.2089853,95718.0,95712.0,0.00015674]
[1739892356613,0.5697956,95713.0,95712.0,0.00015674]
[1739892356815,0.2090179,95703.0,95697.0,0.3608]
[1739892357008,0.2090236,95701.0,95686.0,0.0626]
[1739892357511,0.0623,95702.0,95686.0,0.0626]
[1739892357712,0.2090353,95695.0,95686.0,0.0805835]
[1739892358103,0.12633951,95700.0,95686.0,0.0805835]
[1739892358311,0.12633951,95700.0,95692.0,0.20904]
[1739892358509,0.209031,95697.0,95695.0,0.2090336]
[1739892359821,0.209043,95692.0,95686.0,0.0805835]
[1739892360121,0.2090309,95697.0,95695.0,0.2090349]
[1739892360311,0.0643,95699.0,95686.0,0.0805835]
[1739892360508,0.7216,95691.0,95682.0,0.9122]
[1739892360711,0.5698611,95683.0,95682.0,0.8134]
[1739892361017,0.5698611,95683.0,95656.0,0.3608]
[1739892361018,0.5698611,95683.0,95664.0,0.2091006]
[1739892361225,0.0639,95682.0,95656.0,0.3608]
[1739892361416,0.0639,95682.0,95668.0,0.2090931]
[1739892361615,0.0639,95682.0,95661.0,0.209109]
[1739892361816,0.13203575,95682.0,95658.0,0.2091153]
[1739892362118,0.2090993,95666.0,95663.0,0.2091043]
[1739892363214,0.12618277,95668.0,95658.0,0.007]
[1739892363215,0.2091086,95662.0,95658.0,0.007]
[1739892363517,0.12618277,95668.0,95656.0,0.5699191]
[1739892363518,0.2041179,95657.0,95656.0,0.3608]
[1739892364026,0.0637,95667.0,95656.0,0.3608]
[1739892364918,0.0637,95667.0,95655.0,0.00015674]
[1739892364919,0.2091201,95656.0,95655.0,0.00015674]
[1739892365810,0.0646,95657.0,95649.0,0.1]
[1739892365811,0.2091332,95650.0,95649.0,0.1]
[1739892366122,0.3608,95650.0,95626.0,0.2091853]
[1739892366309,0.2091782,95630.0,95627.0,0.2091828]
[1739892366510,0.2091782,95630.0,95624.0,0.01]
[1739892366715,0.2091782,95630.0,95625.0,0.2723867]
[1739892366919,0.2091782,95630.0,95628.0,0.2091796]
[1739892367315,0.12618277,95636.0,95625.0,0.01651491]
[1739892367505,0.2071856,95627.0,95624.0,0.01]
[1739892368417,0.2091731,95632.0,95629.0,0.2091785]
[1739892368624,0.2091751,95631.0,95629.0,0.2091785]
[1739892369614,0.209179,95630.0,95628.0,0.002]
[1739892370119,0.209179,95630.0,95629.0,0.002]
[1739892370720,0.209179,95630.0,95628.0,0.2111811]
[1739892370918,0.209179,95630.0,95628.0,0.002]
[1739892371823,0.209179,95630.0,95628.0,0.2111812]
[1739892372218,0.2091792,95629.0,95628.0,0.2111812]
[1739892372421,0.2071792,95629.0,95628.0,0.2091812]
[1739892372926,0.2071792,95629.0,95628.0,0.2111812]
[1739892373429,0.00015684,95637.0,95636.0,0.2091639]
[1739892373620,0.00015684,95637.0,95636.0,0.5699639]
[1739892373820,0.00015684,95637.0,95636.0,0.2091639]
[1739892374026,0.00015684,95637.0,95631.0,0.2091743]
[1739892374223,0.00015684,95637.0,95629.0,0.0633]
[1739892374428,0.209177,95631.0,95630.0,0.2091769]
[1739892374926,0.209177,95631.0,95629.0,0.0633]
[1739892374927,0.2091792,95629.0,95628.0,0.002]
[1739892375728,0.0607,95632.0,95625.0,0.2091877]
[1739892375930,0.2091857,95626.0,95625.0,0.2091877]
[1739892376435,0.2071857,95626.0,95625.0,0.2091877]
[1739892376726,0.2091751,95631.0,95624.0,0.01]
[1739892376927,0.3608,95633.0,95632.0,0.2091726]
[1739892377430,0.2091763,95631.0,95625.0,0.0623]
[1739892377625,0.2091763,95631.0,95630.0,0.209177]
[1739892377926,0.3608,95633.0,95625.0,0.2714877]
[1739892378130,0.3608,95633.0,95625.0,0.002]
[1739892378428,0.2091752,95631.0,95630.0,0.2091765]
[1739892378618,0.2091857,95626.0,95625.0,0.002]
[1739892379020,0.2091857,95626.0,95624.0,0.01]
[1739892379226,0.3608,95625.0,95624.0,0.01]
[1739892379728,0.3762174,95625.0,95624.0,0.01]
[1739892380730,0.3762174,95625.0,95624.0,0.013]
[1739892380917,0.2092295,95606.0,95598.0,0.2092448]
[1739892381121,0.2092295,95606.0,95602.0,0.01627632]
[1739892381330,0.2092295,95606.0,95600.0,0.3092416]
[1739892381717,0.0584,95609.0,95600.0,0.3092416]
[1739892381718,0.2092364,95603.0,95600.0,0.1]
[1739892382134,0.2092364,95603.0,95600.0,0.1165568]
[1739892382430,0.209239,95602.0,95600.0,0.1]
[1739892383440,0.001,95603.0,95601.0,0.2092392]
[1739892383728,0.001,95603.0,95600.0,0.1]
[1739892383729,0.00015684,95611.0,95609.0,0.2092229]
[1739892384138,0.00015684,95611.0,95610.0,0.0629]
[1739892385625,0.00415684,95611.0,95610.0,0.0629]
[1739892386028,0.00015684,95611.0,95610.0,0.0629]
[1739892386333,0.00415684,95611.0,95610.0,0.0629]
[1739892387033,0.12418115,95622.0,95610.0,0.0629]
[1739892387232,0.3608,95626.0,95624.0,0.2091887]
[1739892387436,0.01588862,95637.0,95628.0,0.2091797]
[1739892387738,0.5699691,95634.0,95628.0,0.2091797]
[1739892387928,0.36140001,95634.0,95621.0,0.2091962]
[1739892388128,0.3608,95625.0,95621.0,0.2091962]
[1739892388626,0.2091952,95622.0,95617.0,0.00015684]
[1739892388825,0.2091977,95621.0,95617.0,0.00015684]
[1739892389434,0.2092032,95618.0,95617.0,0.00015684]
[1739892391027,0.0603,95618.0,95590.0,0.91188]
[1739892391230,0.3608,95601.0,95595.0,0.016557]
[1739892391526,0.3608,95601.0,95592.0,0.11992]
[1739892391835,0.4863,95601.0,95592.0,0.11992]
[1739892392027,0.4863,95601.0,95585.0,0.1892]
[1739892392338,0.4863,95601.0,95579.0,0.209288]
[1739892392832,0.570081,95583.0,95575.0,0.00156929]
[1739892393038,0.570081,95583.0,95575.0,0.01818306]
[1739892393335,0.2092948,95577.0,95575.0,0.01818306]
[1739892393534,0.2092948,95577.0,95575.0,0.00156929]
[1739892394437,0.3608,95579.0,95575.0,0.00156929]
[1739892394738,0.00015694,95589.0,95576.0,0.3608]
[1739892395136,0.00015694,95589.0,95580.0,0.2092849]
[1739892395336,0.0161009,95589.0,95580.0,0.2092849]
[1739892395638,0.2253691,95589.0,95580.0,0.2092849]
[1739892395936,0.2092899,95579.0,95576.0,0.002]
[1739892396245,0.3608,95577.0,95576.0,0.002]
[1739892396426,0.2092952,95576.0,95575.0,0.00156929]
[1739892396837,0.3608,95577.0,95558.0,0.2093327]
[1739892397142,0.48498131,95568.0,95558.0,0.22551922]
[1739892397542,0.48498131,95568.0,95558.0,0.01618652]
[1739892397743,0.48498131,95568.0,95552.0,0.1211]
[1739892398040,0.48498131,95568.0,95555.0,0.3770287]
[1739892398246,0.12618131,95568.0,95565.0,0.3608]
[1739892398430,0.12618131,95575.0,95567.0,0.2093129]
[1739892399340,0.12618131,95575.0,95572.0,0.209302]